[Event "*** Titled Tuesday Blitz"]
[Site "Chess.com"]
[Date "2020.05.19"]
[Round "1"]
[White "GadimbayliA"]
[Black "sari07"]
[Result "1-0"]
[WhiteElo "2847"]
[BlackElo "2437"]
[TimeControl "180+1"]
[EndTime "12:06:46 PDT"]
[Termination "GadimbayliA won by resignation"]

1. e4 {[%clk 0:03:00.6]} 1... e5 {[%clk 0:02:59.1]} 2. Nf3 {[%clk 0:03:00.4]}
2... Nc6 {[%clk 0:02:59.1]} 3. Nc3 {[%clk 0:03:01]} 3... Nf6 {[%clk 0:02:58.5]}
4. d4 {[%clk 0:03:01.6]} 4... exd4 {[%clk 0:02:58.2]} 5. Nxd4 {[%clk 0:03:02.5]}
5... Bb4 {[%clk 0:02:57.3]} 6. Nxc6 {[%clk 0:03:02.9]} 6... bxc6 {[%clk
0:02:58.2]} 7. Bd3 {[%clk 0:03:03.5]} 7... d5 {[%clk 0:02:58]} 8. exd5 {[%clk
0:03:04.4]} 8... O-O {[%clk 0:02:58.4]} 9. O-O {[%clk 0:03:04.9]} 9... Bg4
{[%clk 0:02:58.4]} 10. f3 {[%clk 0:03:05.2]} 10... Bh5 {[%clk 0:02:58]} 11. Bg5
{[%clk 0:03:05.8]} 11... Bxc3 {[%clk 0:02:50.6]} 12. bxc3 {[%clk 0:03:04.1]}
12... cxd5 {[%clk 0:02:50.4]} 13. Rb1 {[%clk 0:02:51.9]} 13... Qd6 {[%clk
0:02:44.5]} 14. Qd2 {[%clk 0:02:51.5]} 14... Bg6 {[%clk 0:02:40.8]} 15. Bf4
{[%clk 0:02:48.3]} 15... Qc5+ {[%clk 0:02:38.4]} 16. Kh1 {[%clk 0:02:48]} 16...
Rab8 {[%clk 0:02:30]} 17. Bxg6 {[%clk 0:02:31.9]} 17... hxg6 {[%clk 0:02:27.8]}
18. Qd4 {[%clk 0:02:32]} 18... Qa5 {[%clk 0:02:08.7]} 19. Rxb8 {[%clk
0:02:12.2]} 19... Rxb8 {[%clk 0:02:07.2]} 20. Be5 {[%clk 0:02:12.6]} 20... Qxa2
{[%clk 0:01:56.1]} 21. h3 {[%clk 0:01:37.5]} 21... Rb1 {[%clk 0:01:51.1]} 22.
Rxb1 {[%clk 0:01:37.1]} 22... Qxb1+ {[%clk 0:01:52]} 23. Kh2 {[%clk 0:01:37.7]}
23... a5 {[%clk 0:01:30.8]} 24. Bxc7 {[%clk 0:01:33.4]} 24... Qb5 {[%clk
0:01:22]} 25. Be5 {[%clk 0:01:33.5]} 25... a4 {[%clk 0:01:19.9]} 26. Qa7 {[%clk
0:01:31]} 26... Nd7 {[%clk 0:00:56.6]} 27. Bd6 {[%clk 0:01:20.3]} 27... Qc6
{[%clk 0:00:49.3]} 28. Bb4 {[%clk 0:01:10.7]} 28... Kh7 {[%clk 0:00:33.7]} 29.
Qa5 {[%clk 0:01:03.8]} 29... Ne5 {[%clk 0:00:28.5]} 30. Qd8 {[%clk 0:01:03.1]}
30... f6 {[%clk 0:00:21.7]} 31. Qb8 {[%clk 0:00:52.6]} 31... Nc4 {[%clk
0:00:20.6]} 32. Qa7 {[%clk 0:00:51.1]} 32... Qd6+ {[%clk 0:00:15.6]} 33. Bxd6
{[%clk 0:00:50.9]} 1-0

[Event "*** Titled Tuesday Blitz"]
[Site "Chess.com"]
[Date "2020.05.19"]
[Round "1"]
[White "Juanovic"]
[Black "Aikiigm"]
[Result "0-1"]
[WhiteElo "2166"]
[BlackElo "2512"]
[TimeControl "180+1"]
[EndTime "12:06:47 PDT"]
[Termination "Aikiigm won by resignation"]

1. e4 {[%clk 0:03:00.9]} 1... e6 {[%clk 0:02:59.4]} 2. d4 {[%clk 0:03:00.2]}
2... d5 {[%clk 0:03:00.3]} 3. e5 {[%clk 0:02:58.8]} 3... c5 {[%clk 0:02:59.8]}
4. c3 {[%clk 0:02:58.8]} 4... Bd7 {[%clk 0:02:59.5]} 5. Nf3 {[%clk 0:02:57.9]}
5... Qb6 {[%clk 0:02:59.1]} 6. a3 {[%clk 0:02:56.5]} 6... Bb5 {[%clk 0:02:59.1]}
7. Bd3 {[%clk 0:02:48.1]} 7... Bxd3 {[%clk 0:02:55.3]} 8. Qxd3 {[%clk
0:02:47.9]} 8... Qa6 {[%clk 0:02:55.8]} 9. Qxa6 {[%clk 0:02:41.1]} 9... Nxa6
{[%clk 0:02:56.7]} 10. b4 {[%clk 0:02:34.5]} 10... cxd4 {[%clk 0:02:48.1]} 11.
cxd4 {[%clk 0:02:33.4]} 11... Rc8 {[%clk 0:02:48.1]} 12. Nbd2 {[%clk 0:02:21.3]}
12... Ne7 {[%clk 0:02:45.7]} 13. O-O {[%clk 0:02:12.3]} 13... Nf5 {[%clk
0:02:45.5]} 14. Bb2 {[%clk 0:02:02.7]} 14... h5 {[%clk 0:02:45]} 15. Rac1 {[%clk
0:01:56.8]} 15... Nc7 {[%clk 0:02:14]} 16. Rc2 {[%clk 0:01:51.2]} 16... Be7
{[%clk 0:02:14]} 17. Rfc1 {[%clk 0:01:50.5]} 17... Kd7 {[%clk 0:02:14.5]} 18.
Nb3 {[%clk 0:01:42.8]} 18... b6 {[%clk 0:02:12.8]} 19. Rc6 {[%clk 0:01:08.2]}
19... g5 {[%clk 0:02:09.7]} 20. Kf1 {[%clk 0:01:06.3]} 20... g4 {[%clk
0:02:09.7]} 21. Nfd2 {[%clk 0:01:05.7]} 21... Bg5 {[%clk 0:02:06.7]} 22. R1c2
{[%clk 0:01:04.7]} 22... h4 {[%clk 0:01:59.7]} 23. Ke2 {[%clk 0:00:59.7]} 23...
g3 {[%clk 0:01:57.8]} 24. fxg3 {[%clk 0:00:58.3]} 24... hxg3 {[%clk 0:01:57.9]}
25. hxg3 {[%clk 0:00:58]} 25... Nxg3+ {[%clk 0:01:55.6]} 26. Kf3 {[%clk
0:00:55.9]} 26... Nf5 {[%clk 0:01:55]} 27. Nf1 {[%clk 0:00:51.2]} 27... Nh4+
{[%clk 0:01:47.7]} 28. Kf2 {[%clk 0:00:49.3]} 28... Nf5 {[%clk 0:01:46.7]} 29.
a4 {[%clk 0:00:43.6]} 29... Be7 {[%clk 0:01:44.7]} 30. b5 {[%clk 0:00:42]} 30...
Bd8 {[%clk 0:01:36.1]} 31. Ba3 {[%clk 0:00:40.3]} 31... Rb8 {[%clk 0:01:20.8]}
32. Bd6 {[%clk 0:00:39.4]} 32... Nxd6 {[%clk 0:01:18.5]} 33. Rxd6+ {[%clk
0:00:40.3]} 33... Ke7 {[%clk 0:01:18.3]} 34. Rdc6 {[%clk 0:00:32.4]} 34... Ne8
{[%clk 0:01:17]} 35. Rc8 {[%clk 0:00:31.7]} 35... Rb7 {[%clk 0:01:08.8]} 36. a5
{[%clk 0:00:27.9]} 36... bxa5 {[%clk 0:01:05.6]} 37. Nc5 {[%clk 0:00:26]} 37...
Rxb5 {[%clk 0:01:02.4]} 38. Ra8 {[%clk 0:00:24]} 38... Bb6 {[%clk 0:01:02]} 39.
Na6 {[%clk 0:00:23.3]} 39... Bxd4+ {[%clk 0:00:54.9]} 40. Ke2 {[%clk 0:00:23.7]}
40... Bxe5 {[%clk 0:00:53.7]} 41. Rcc8 {[%clk 0:00:23.4]} 41... a4 {[%clk
0:00:50.8]} 42. Nd2 {[%clk 0:00:18.2]} 42... a3 {[%clk 0:00:50.4]} 43. Nf3
{[%clk 0:00:14.7]} 43... Bd6 {[%clk 0:00:49]} 0-1

[Event "*** Titled Tuesday Blitz"]
[Site "Chess.com"]
[Date "2020.05.19"]
[Round "1"]
[White "ecwinslow"]
[Black "elohunter1999"]
[Result "0-1"]
[WhiteElo "2220"]
[BlackElo "2539"]
[TimeControl "180+1"]
[EndTime "12:06:48 PDT"]
[Termination "elohunter1999 won on time"]

1. e4 {[%clk 0:02:58.5]} 1... c5 {[%clk 0:02:59.2]} 2. Nf3 {[%clk 0:02:57.2]}
2... Nc6 {[%clk 0:02:55.8]} 3. d4 {[%clk 0:02:57.1]} 3... cxd4 {[%clk
0:02:56.7]} 4. Nxd4 {[%clk 0:02:57.3]} 4... Nf6 {[%clk 0:02:55.9]} 5. Nc3 {[%clk
0:02:56.8]} 5... e5 {[%clk 0:02:53.9]} 6. Ndb5 {[%clk 0:02:56.5]} 6... d6 {[%clk
0:02:53.3]} 7. Bg5 {[%clk 0:02:56.8]} 7... a6 {[%clk 0:02:48.4]} 8. Na3 {[%clk
0:02:57.4]} 8... b5 {[%clk 0:02:41.7]} 9. Nd5 {[%clk 0:02:53.8]} 9... Be7 {[%clk
0:02:40.7]} 10. Bxf6 {[%clk 0:02:53.8]} 10... Bxf6 {[%clk 0:02:41.6]} 11. c3
{[%clk 0:02:53.6]} 11... Bg5 {[%clk 0:02:38.3]} 12. Nc2 {[%clk 0:02:51.2]} 12...
Rb8 {[%clk 0:02:38]} 13. a4 {[%clk 0:02:33.7]} 13... bxa4 {[%clk 0:02:38.9]} 14.
Ncb4 {[%clk 0:02:33.6]} 14... Nxb4 {[%clk 0:02:38.4]} 15. Nxb4 {[%clk 0:02:33]}
15... Bd7 {[%clk 0:02:32.7]} 16. Bxa6 {[%clk 0:02:25.2]} 16... Qb6 {[%clk
0:02:25.5]} 17. O-O {[%clk 0:02:16.2]} 17... O-O {[%clk 0:02:17.7]} 18. Bc4
{[%clk 0:01:55.8]} 18... Kh8 {[%clk 0:02:16.4]} 19. Qh5 {[%clk 0:01:45.9]} 19...
Bh6 {[%clk 0:02:10.2]} 20. Bxf7 {[%clk 0:01:38.4]} 20... Qc5 {[%clk 0:01:47.2]}
21. Rad1 {[%clk 0:01:26.3]} 21... Bb5 {[%clk 0:01:42.7]} 22. Rfe1 {[%clk
0:01:18.9]} 22... Qa7 {[%clk 0:01:38.1]} 23. Bd5 {[%clk 0:00:37.3]} 23... Qxf2+
{[%clk 0:01:36.6]} 24. Kh1 {[%clk 0:00:37.4]} 24... Rf4 {[%clk 0:01:25]} 25. Qh3
{[%clk 0:00:20.8]} 25... Rbf8 {[%clk 0:01:18.9]} 26. g3 {[%clk 0:00:19]} 26...
R4f6 {[%clk 0:01:15.5]} 27. Qg2 {[%clk 0:00:18.1]} 27... Qxg2+ {[%clk
0:01:14.1]} 28. Kxg2 {[%clk 0:00:17.8]} 28... Rf2+ {[%clk 0:01:15]} 29. Kg1
{[%clk 0:00:16]} 29... Rxb2 {[%clk 0:01:14.9]} 30. Bc6 {[%clk 0:00:13.4]} 30...
Bxc6 {[%clk 0:01:06.9]} 31. Rxd6 {[%clk 0:00:12.1]} 31... Bb5 {[%clk 0:01:00.7]}
32. Rd5 {[%clk 0:00:09.8]} 32... Bc4 {[%clk 0:00:55.3]} 33. Rxe5 {[%clk
0:00:09.1]} 33... Be3+ {[%clk 0:00:42.5]} 34. Kh1 {[%clk 0:00:06.9]} 34... Rff2
{[%clk 0:00:41.5]} 35. Rh5 {[%clk 0:00:03]} 35... g6 {[%clk 0:00:37.8]} 0-1

[Event "*** Titled Tuesday Blitz"]
[Site "Chess.com"]
[Date "2020.05.19"]
[Round "1"]
[White "KafkaesqueKnight"]
[Black "AleksibFan"]
[Result "0-1"]
[WhiteElo "2140"]
[BlackElo "2506"]
[TimeControl "180+1"]
[EndTime "12:06:50 PDT"]
[Termination "AleksibFan won by resignation"]

1. d4 {[%clk 0:02:31.6]} 1... d5 {[%clk 0:02:59.6]} 2. c4 {[%clk 0:02:30.7]}
2... c6 {[%clk 0:02:59.7]} 3. Nf3 {[%clk 0:02:29.7]} 3... Nf6 {[%clk 0:02:59.5]}
4. Nc3 {[%clk 0:02:29.6]} 4... a6 {[%clk 0:02:59.4]} 5. c5 {[%clk 0:02:27.8]}
5... g6 {[%clk 0:02:58.8]} 6. e3 {[%clk 0:02:22.5]} 6... Bg7 {[%clk 0:02:58.2]}
7. Ne5 {[%clk 0:02:22.8]} 7... Nfd7 {[%clk 0:02:51.2]} 8. f4 {[%clk 0:02:18.4]}
8... f6 {[%clk 0:02:45.1]} 9. Nd3 {[%clk 0:02:15.8]} 9... e5 {[%clk 0:02:41.1]}
10. Be2 {[%clk 0:01:55.1]} 10... O-O {[%clk 0:02:36]} 11. O-O {[%clk 0:01:53.3]}
11... e4 {[%clk 0:02:05.8]} 12. Nf2 {[%clk 0:01:45.7]} 12... f5 {[%clk
0:02:04.3]} 13. b4 {[%clk 0:01:38.1]} 13... a5 {[%clk 0:02:02]} 14. b5 {[%clk
0:01:36]} 14... Nxc5 {[%clk 0:02:00.9]} 15. Ba3 {[%clk 0:01:12.4]} 15... Ne6
{[%clk 0:01:39]} 16. Bxf8 {[%clk 0:01:09.2]} 16... Qxf8 {[%clk 0:01:39.6]} 17.
bxc6 {[%clk 0:01:10.1]} 17... bxc6 {[%clk 0:01:38.9]} 18. Rb1 {[%clk 0:01:03.5]}
18... Na6 {[%clk 0:01:12.6]} 19. Qa4 {[%clk 0:00:54]} 19... Bd7 {[%clk
0:01:06.8]} 20. Qxa5 {[%clk 0:00:44.2]} 20... Nac7 {[%clk 0:00:52.4]} 21. Qb4
{[%clk 0:00:39.9]} 21... Qxb4 {[%clk 0:00:43.3]} 22. Rxb4 {[%clk 0:00:38.5]}
22... c5 {[%clk 0:00:44.2]} 23. Rb7 {[%clk 0:00:19.6]} 23... Bc8 {[%clk
0:00:33.9]} 24. Rb3 {[%clk 0:00:07.5]} 24... cxd4 {[%clk 0:00:31.7]} 25. exd4
{[%clk 0:00:07.5]} 25... Nxd4 {[%clk 0:00:28.9]} 26. Rfb1 {[%clk 0:00:01.6]}
26... Nxb3 {[%clk 0:00:26.4]} 27. Rxb3 {[%clk 0:00:02.5]} 0-1

[Event "*** Titled Tuesday Blitz"]
[Site "Chess.com"]
[Date "2020.05.19"]
[Round "1"]
[White "adricalderon8"]
[Black "TheBigBoss04"]
[Result "1-0"]
[WhiteElo "2423"]
[BlackElo "2754"]
[TimeControl "180+1"]
[EndTime "12:06:53 PDT"]
[Termination "adricalderon8 won on time"]

1. e4 {[%clk 0:02:59.2]} 1... g6 {[%clk 0:02:59.2]} 2. d4 {[%clk 0:02:58.9]}
2... Bg7 {[%clk 0:02:59.4]} 3. Nc3 {[%clk 0:02:59.2]} 3... c6 {[%clk 0:02:59.4]}
4. Nf3 {[%clk 0:02:55.1]} 4... d5 {[%clk 0:02:59.1]} 5. h3 {[%clk 0:02:55.5]}
5... dxe4 {[%clk 0:02:58.8]} 6. Nxe4 {[%clk 0:02:54.9]} 6... Nf6 {[%clk
0:02:59.1]} 7. Ng3 {[%clk 0:02:44.1]} 7... O-O {[%clk 0:02:56.3]} 8. Be2 {[%clk
0:02:43.8]} 8... Nbd7 {[%clk 0:02:52.8]} 9. O-O {[%clk 0:02:43.1]} 9... Qc7
{[%clk 0:02:42.1]} 10. c4 {[%clk 0:02:37.8]} 10... e5 {[%clk 0:02:36.5]} 11. d5
{[%clk 0:02:18.4]} 11... cxd5 {[%clk 0:02:25.4]} 12. cxd5 {[%clk 0:02:19.3]}
12... e4 {[%clk 0:02:08.7]} 13. Ng5 {[%clk 0:01:57.8]} 13... Qe5 {[%clk
0:02:03.5]} 14. h4 {[%clk 0:01:40.1]} 14... h6 {[%clk 0:01:54.9]} 15. Nh3 {[%clk
0:01:29]} 15... Nxd5 {[%clk 0:01:53.1]} 16. Re1 {[%clk 0:01:21.3]} 16... N7f6
{[%clk 0:01:50.6]} 17. Bc4 {[%clk 0:01:06.2]} 17... Bxh3 {[%clk 0:01:45.2]} 18.
gxh3 {[%clk 0:01:07.1]} 18... Nf4 {[%clk 0:01:39.8]} 19. Bxf4 {[%clk 0:00:44.9]}
19... Qxf4 {[%clk 0:01:38.1]} 20. h5 {[%clk 0:00:45.8]} 20... Kh7 {[%clk
0:01:20.8]} 21. Qb3 {[%clk 0:00:37.2]} 21... Nxh5 {[%clk 0:00:49.8]} 22. Rxe4
{[%clk 0:00:31.4]} 22... Qg5 {[%clk 0:00:23.8]} 23. Rg4 {[%clk 0:00:31.6]} 23...
Qe7 {[%clk 0:00:14.1]} 24. Nxh5 {[%clk 0:00:31.6]} 24... gxh5 {[%clk 0:00:14.7]}
25. Rg2 {[%clk 0:00:32.2]} 25... f5 {[%clk 0:00:12.1]} 26. Kh1 {[%clk
0:00:29.3]} 26... Be5 {[%clk 0:00:08.9]} 27. Rag1 {[%clk 0:00:28.3]} 27... Rad8
{[%clk 0:00:05.7]} 28. Qf3 {[%clk 0:00:20.6]} 28... Qh4 {[%clk 0:00:02.5]} 29.
Bd3 {[%clk 0:00:19.9]} 1-0

[Event "*** Titled Tuesday Blitz"]
[Site "Chess.com"]
[Date "2020.05.19"]
[Round "1"]
[White "MomchilPetkov"]
[Black "SidArun"]
[Result "1-0"]
[WhiteElo "2552"]
[BlackElo "2228"]
[TimeControl "180+1"]
[EndTime "12:06:53 PDT"]
[Termination "MomchilPetkov won by resignation"]

1. d4 {[%clk 0:03:00.9]} 1... Nf6 {[%clk 0:02:59.5]} 2. c4 {[%clk 0:03:00.9]}
2... e5 {[%clk 0:02:59.3]} 3. dxe5 {[%clk 0:02:59.6]} 3... Ng4 {[%clk
0:02:59.4]} 4. Nf3 {[%clk 0:02:58.8]} 4... Bc5 {[%clk 0:02:58.9]} 5. e3 {[%clk
0:02:57.9]} 5... Nc6 {[%clk 0:02:57.5]} 6. Be2 {[%clk 0:02:56.7]} 6... O-O
{[%clk 0:02:56.5]} 7. O-O {[%clk 0:02:56.2]} 7... Ngxe5 {[%clk 0:02:55.6]} 8.
Nc3 {[%clk 0:02:54]} 8... Re8 {[%clk 0:02:54.4]} 9. b3 {[%clk 0:02:37.9]} 9...
a5 {[%clk 0:02:53.7]} 10. Bb2 {[%clk 0:02:36.6]} 10... Ra6 {[%clk 0:02:53.9]}
11. Nd5 {[%clk 0:02:30.6]} 11... Nxf3+ {[%clk 0:02:49.2]} 12. Bxf3 {[%clk
0:02:31.5]} 12... Ne5 {[%clk 0:02:49.2]} 13. Be2 {[%clk 0:02:29.1]} 13... Rh6
{[%clk 0:02:46.3]} 14. Bd4 {[%clk 0:01:39.8]} 14... Bf8 {[%clk 0:02:38.1]} 15.
f4 {[%clk 0:01:34.1]} 15... Nc6 {[%clk 0:02:29.7]} 16. Bb2 {[%clk 0:01:34]}
16... Nb4 {[%clk 0:02:19.2]} 17. Qd2 {[%clk 0:01:14]} 17... c6 {[%clk
0:02:11.3]} 18. Nc3 {[%clk 0:01:12.6]} 18... Bc5 {[%clk 0:02:03.2]} 19. Rf3
{[%clk 0:01:12.7]} 19... Rhe6 {[%clk 0:01:27.7]} 20. Nd1 {[%clk 0:01:03.9]}
20... Qb6 {[%clk 0:01:23.5]} 21. Rg3 {[%clk 0:00:52.4]} 21... f6 {[%clk
0:01:19.8]} 22. Kh1 {[%clk 0:00:40.8]} 22... Bxe3 {[%clk 0:01:17.7]} 23. Nxe3
{[%clk 0:00:41.1]} 23... Rxe3 {[%clk 0:01:17.8]} 24. Bd4 {[%clk 0:00:30.7]}
24... Rxe2 {[%clk 0:01:07.8]} 25. Qxe2 {[%clk 0:00:31.6]} 25... Rxe2 {[%clk
0:01:05.6]} 26. Bxb6 {[%clk 0:00:32.1]} 26... Nxa2 {[%clk 0:00:43.7]} 27. Re3
{[%clk 0:00:31.1]} 27... Rxe3 {[%clk 0:00:37.6]} 28. Bxe3 {[%clk 0:00:32]} 28...
Nb4 {[%clk 0:00:32.6]} 29. Rxa5 {[%clk 0:00:32.3]} 29... Na6 {[%clk 0:00:32.8]}
30. b4 {[%clk 0:00:30.3]} 30... d5 {[%clk 0:00:25.3]} 31. cxd5 {[%clk
0:00:29.1]} 31... cxd5 {[%clk 0:00:24.8]} 32. b5 {[%clk 0:00:29.3]} 32... Nc7
{[%clk 0:00:24.4]} 33. Bb6 {[%clk 0:00:27.6]} 33... Ne8 {[%clk 0:00:09.9]} 34.
Ra8 {[%clk 0:00:26.9]} 34... Nd6 {[%clk 0:00:10]} 35. Bc5 {[%clk 0:00:26.1]} 1-0

[Event "*** Titled Tuesday Blitz"]
[Site "Chess.com"]
[Date "2020.05.19"]
[Round "1"]
[White "politeplayer"]
[Black "GMBenjaminFinegold"]
[Result "0-1"]
[WhiteElo "2209"]
[BlackElo "2533"]
[TimeControl "180+1"]
[EndTime "12:06:53 PDT"]
[Termination "GMBenjaminFinegold won by checkmate"]

1. e4 {[%clk 0:02:59.5]} 1... c5 {[%clk 0:02:59.4]} 2. Nf3 {[%clk 0:02:58.7]}
2... Nc6 {[%clk 0:02:57.5]} 3. d4 {[%clk 0:02:58.1]} 3... cxd4 {[%clk
0:02:56.7]} 4. Nxd4 {[%clk 0:02:58.6]} 4... Nf6 {[%clk 0:02:55.6]} 5. Nc3 {[%clk
0:02:57.7]} 5... d6 {[%clk 0:02:55.3]} 6. Bg5 {[%clk 0:02:55.5]} 6... e6 {[%clk
0:02:52.1]} 7. Qd2 {[%clk 0:02:54.3]} 7... Be7 {[%clk 0:02:49.3]} 8. O-O-O
{[%clk 0:02:46.5]} 8... O-O {[%clk 0:02:46]} 9. f3 {[%clk 0:02:38]} 9... Nxd4
{[%clk 0:02:37.8]} 10. Qxd4 {[%clk 0:02:37.2]} 10... Qa5 {[%clk 0:02:38.4]} 11.
h4 {[%clk 0:02:31.1]} 11... Bd7 {[%clk 0:02:35.9]} 12. Kb1 {[%clk 0:02:18.5]}
12... Rfc8 {[%clk 0:02:33.2]} 13. g4 {[%clk 0:01:59.5]} 13... b5 {[%clk
0:02:22.5]} 14. Bd2 {[%clk 0:01:50.4]} 14... b4 {[%clk 0:02:13.3]} 15. Ne2
{[%clk 0:01:50]} 15... Rab8 {[%clk 0:01:45.8]} 16. g5 {[%clk 0:01:49.7]} 16...
Nh5 {[%clk 0:01:39.2]} 17. Nc1 {[%clk 0:01:42.3]} 17... e5 {[%clk 0:01:36]} 18.
Qf2 {[%clk 0:01:23.7]} 18... Be6 {[%clk 0:01:34.8]} 19. Nb3 {[%clk 0:01:18.9]}
19... Qc7 {[%clk 0:01:34.7]} 20. Rc1 {[%clk 0:01:03.5]} 20... a5 {[%clk
0:01:33.9]} 21. f4 {[%clk 0:00:59.5]} 21... a4 {[%clk 0:01:25.5]} 22. f5 {[%clk
0:00:54.2]} 22... axb3 {[%clk 0:01:25]} 23. cxb3 {[%clk 0:00:54.3]} 23... Qb7
{[%clk 0:01:16.1]} 24. fxe6 {[%clk 0:00:48.7]} 24... Qxe4+ {[%clk 0:01:16]} 25.
Ka1 {[%clk 0:00:43]} 25... Rxc1+ {[%clk 0:01:14.9]} 26. Bxc1 {[%clk 0:00:42.7]}
26... Qxh1 {[%clk 0:01:08.3]} 27. Qxf7+ {[%clk 0:00:41.1]} 27... Kh8 {[%clk
0:01:08.3]} 28. Kb1 {[%clk 0:00:19]} 28... Qe4+ {[%clk 0:01:03]} 29. Ka1 {[%clk
0:00:18.2]} 29... Qe1 {[%clk 0:01:02]} 30. Kb1 {[%clk 0:00:12.8]} 30... Qe4+
{[%clk 0:00:41.3]} 31. Ka1 {[%clk 0:00:10.8]} 31... Qc2 {[%clk 0:00:40.2]} 32.
a3 {[%clk 0:00:05.6]} 32... bxa3 {[%clk 0:00:36.6]} 33. bxa3 {[%clk 0:00:03.8]}
33... Qxc1+ {[%clk 0:00:36.8]} 34. Ka2 {[%clk 0:00:03.6]} 34... Qc2+ {[%clk
0:00:37.2]} 35. Ka1 {[%clk 0:00:03.8]} 35... Qd1+ {[%clk 0:00:36.8]} 36. Ka2
{[%clk 0:00:04.2]} 36... Qxb3+ {[%clk 0:00:36.7]} 37. Ka1 {[%clk 0:00:04.6]}
37... Qb2# {[%clk 0:00:36.8]} 0-1

[Event "*** Titled Tuesday Blitz"]
[Site "Chess.com"]
[Date "2020.05.19"]
[Round "1"]
[White "IMTominho"]
[Black "guillembaches"]
[Result "1-0"]
[WhiteElo "2833"]
[BlackElo "2430"]
[TimeControl "180+1"]
[EndTime "12:06:54 PDT"]
[Termination "IMTominho won on time"]

1. d4 {[%clk 0:03:00.9]} 1... Nf6 {[%clk 0:02:59.4]} 2. Bg5 {[%clk 0:02:59.2]}
2... e6 {[%clk 0:02:59.4]} 3. Nd2 {[%clk 0:02:56.2]} 3... h6 {[%clk 0:02:59]} 4.
Bh4 {[%clk 0:02:54.8]} 4... c5 {[%clk 0:02:58.5]} 5. e3 {[%clk 0:02:43.4]} 5...
b6 {[%clk 0:02:48.4]} 6. Ngf3 {[%clk 0:02:42.6]} 6... Bb7 {[%clk 0:02:48]} 7.
Bd3 {[%clk 0:02:42.4]} 7... Be7 {[%clk 0:02:47.7]} 8. O-O {[%clk 0:02:42.3]}
8... cxd4 {[%clk 0:02:44.5]} 9. exd4 {[%clk 0:02:42.1]} 9... O-O {[%clk
0:02:44.3]} 10. Re1 {[%clk 0:02:37.7]} 10... d6 {[%clk 0:02:43.9]} 11. Qe2
{[%clk 0:02:30.5]} 11... Nbd7 {[%clk 0:02:42.9]} 12. c4 {[%clk 0:02:25]} 12...
Re8 {[%clk 0:02:37.1]} 13. Rad1 {[%clk 0:02:23.6]} 13... Qc7 {[%clk 0:02:36.7]}
14. b3 {[%clk 0:02:07.5]} 14... a6 {[%clk 0:02:33.8]} 15. Rc1 {[%clk 0:01:57.1]}
15... Rac8 {[%clk 0:02:31.3]} 16. h3 {[%clk 0:01:51.2]} 16... Qb8 {[%clk
0:02:26.4]} 17. Rcd1 {[%clk 0:01:49.2]} 17... Qa8 {[%clk 0:02:26]} 18. Qe3
{[%clk 0:01:20.4]} 18... Bf8 {[%clk 0:02:21.4]} 19. Bg3 {[%clk 0:01:17.2]} 19...
e5 {[%clk 0:02:11.3]} 20. Bf5 {[%clk 0:01:12.6]} 20... e4 {[%clk 0:02:00]} 21.
Nh2 {[%clk 0:01:12.4]} 21... d5 {[%clk 0:01:50.6]} 22. Bh4 {[%clk 0:01:11.3]}
22... Rcd8 {[%clk 0:01:48.7]} 23. Bxd7 {[%clk 0:01:08.5]} 23... Rxd7 {[%clk
0:01:46.7]} 24. Bxf6 {[%clk 0:01:08]} 24... gxf6 {[%clk 0:01:46.7]} 25. Ng4
{[%clk 0:01:08.1]} 25... Re6 {[%clk 0:01:33.8]} 26. Nxh6+ {[%clk 0:01:06.2]}
26... Bxh6 {[%clk 0:01:33.8]} 27. Qxh6 {[%clk 0:01:07.1]} 27... f5 {[%clk
0:01:34]} 28. Qg5+ {[%clk 0:01:05.5]} 28... Rg6 {[%clk 0:01:33.4]} 29. Qxf5
{[%clk 0:01:05.4]} 29... Rdd6 {[%clk 0:01:33]} 30. cxd5 {[%clk 0:00:58.1]} 30...
Rdf6 {[%clk 0:01:23.4]} 31. Qxe4 {[%clk 0:00:55.5]} 31... Bxd5 {[%clk
0:01:17.7]} 32. Qe8+ {[%clk 0:00:55.3]} 32... Kg7 {[%clk 0:01:16]} 33. g3 {[%clk
0:00:49]} 33... Qxe8 {[%clk 0:00:30.9]} 34. Rxe8 {[%clk 0:00:49.9]} 34... Rf4
{[%clk 0:00:30.6]} 35. Nc4 {[%clk 0:00:46.4]} 35... Bf3 {[%clk 0:00:28]} 36. Rd3
{[%clk 0:00:42.8]} 36... Be4 {[%clk 0:00:20.2]} 37. Re3 {[%clk 0:00:40.8]} 1-0

[Event "*** Titled Tuesday Blitz"]
[Site "Chess.com"]
[Date "2020.05.19"]
[Round "1"]
[White "willc-h99"]
[Black "ElGasanov"]
[Result "1/2-1/2"]
[WhiteElo "2413"]
[BlackElo "2754"]
[TimeControl "180+1"]
[EndTime "12:06:54 PDT"]
[Termination "Game drawn by repetition"]

1. c4 {[%clk 0:03:00.9]} 1... e5 {[%clk 0:02:57.4]} 2. g3 {[%clk 0:03:00.9]}
2... d6 {[%clk 0:02:57.1]} 3. Bg2 {[%clk 0:03:00.9]} 3... f5 {[%clk 0:02:57.6]}
4. Nc3 {[%clk 0:03:00.9]} 4... Nf6 {[%clk 0:02:58]} 5. d3 {[%clk 0:03:00.9]}
5... Be7 {[%clk 0:02:58.4]} 6. e4 {[%clk 0:03:01]} 6... fxe4 {[%clk 0:02:57.5]}
7. dxe4 {[%clk 0:03:00.6]} 7... O-O {[%clk 0:02:57.1]} 8. Nge2 {[%clk
0:02:59.9]} 8... c6 {[%clk 0:02:57.6]} 9. O-O {[%clk 0:02:59]} 9... Be6 {[%clk
0:02:58.1]} 10. b3 {[%clk 0:02:58.9]} 10... a6 {[%clk 0:02:58.7]} 11. a4 {[%clk
0:02:51]} 11... a5 {[%clk 0:02:57.6]} 12. h3 {[%clk 0:02:46.3]} 12... Qd7 {[%clk
0:02:48.5]} 13. Kh2 {[%clk 0:02:43.9]} 13... Qe8 {[%clk 0:02:47.8]} 14. f4
{[%clk 0:02:29.3]} 14... Qh5 {[%clk 0:02:46.5]} 15. f5 {[%clk 0:02:26.1]} 15...
Bc8 {[%clk 0:02:28.1]} 16. Ng1 {[%clk 0:02:20.2]} 16... Qxd1 {[%clk 0:02:24.1]}
17. Rxd1 {[%clk 0:02:21.1]} 17... Na6 {[%clk 0:02:24]} 18. g4 {[%clk 0:02:12.8]}
18... Nb4 {[%clk 0:02:14.1]} 19. g5 {[%clk 0:01:51.3]} 19... Nh5 {[%clk
0:02:12.6]} 20. Nge2 {[%clk 0:01:44.7]} 20... Bd7 {[%clk 0:01:36.7]} 21. Bf3
{[%clk 0:01:42.3]} 21... Be8 {[%clk 0:01:34.6]} 22. Rb1 {[%clk 0:01:09.1]} 22...
Nc2 {[%clk 0:01:22.5]} 23. Rb2 {[%clk 0:00:58.8]} 23... Nb4 {[%clk 0:01:17.8]}
24. Be3 {[%clk 0:00:55.5]} 24... Bf7 {[%clk 0:01:12.3]} 25. Rg1 {[%clk
0:00:41.2]} 25... g6 {[%clk 0:00:50.4]} 26. f6 {[%clk 0:00:31.3]} 26... Bd8
{[%clk 0:00:50.8]} 27. Rd2 {[%clk 0:00:30.3]} 27... Bc7 {[%clk 0:00:50.1]} 28.
Bxh5 {[%clk 0:00:22.5]} 28... gxh5 {[%clk 0:00:51]} 29. Ng3 {[%clk 0:00:22.8]}
29... Rfd8 {[%clk 0:00:42.2]} 30. Nf5 {[%clk 0:00:22.2]} 30... d5 {[%clk
0:00:41.6]} 31. cxd5 {[%clk 0:00:21.7]} 31... cxd5 {[%clk 0:00:41.8]} 32. exd5
{[%clk 0:00:19.7]} 32... e4+ {[%clk 0:00:39.9]} 33. Kh1 {[%clk 0:00:19.4]} 33...
Be5 {[%clk 0:00:37.4]} 34. Bd4 {[%clk 0:00:16]} 34... Bf4 {[%clk 0:00:37.1]} 35.
Be3 {[%clk 0:00:15.1]} 35... Be5 {[%clk 0:00:29]} 36. Bd4 {[%clk 0:00:15]} 36...
Bf4 {[%clk 0:00:28.7]} 37. Be3 {[%clk 0:00:15.2]} 37... Be5 {[%clk 0:00:28.6]}
1/2-1/2